bitfinex/quotes_ETHUSD_20251230
["timestamp","ask_amount","ask_price","bid_price","bid_amount"]
[1767110720535,0.25770272,2984.7,2984.0,2.3992]
[1767110720679,0.10022718,2984.6,2984.0,2.3992]
[1767110721775,0.10022718,2984.6,2983.3,0.001]
[1767110721776,0.10022718,2984.6,2983.5,2.3992]
[1767110721777,0.10022718,2984.4,2983.5,2.3992]
[1767110721978,0.10022718,2984.3,2983.5,2.3992]
[1767110723402,0.10022718,2984.1,2983.5,2.3992]
[1767110723836,2.57702718,2984.2,2983.5,2.3992]
[1767110724027,0.10022718,2984.0,2983.5,2.3992]
[1767110724232,0.10022718,2983.8,2983.4,0.879]
[1767110724436,0.10022718,2983.8,2983.3,0.001]
[1767110725024,0.10022718,2983.6,2983.3,0.001]
[1767110725221,0.10022718,2984.0,2983.3,0.001]
[1767110725439,0.10022718,2984.0,2983.3,2.4002]
[1767110725829,0.10022718,2983.8,2983.3,2.4002]
[1767110727171,0.10022718,2983.8,2983.3,0.001]
[1767110727322,0.10022718,2983.6,2983.3,0.001]
[1767110727838,0.10022718,2983.4,2982.7,2.3992]
[1767110728240,2.57702718,2983.4,2982.7,2.3992]
[1767110728562,0.10022718,2983.4,2982.7,2.3992]
[1767110729449,0.10022718,2983.2,2982.6,0.001]
[1767110729820,0.10022718,2983.2,2982.6,2.4002]
[1767110730320,0.10022718,2983.2,2982.6,0.001]
[1767110730321,2.57702718,2983.2,2982.6,0.001]
[1767110730647,0.10022718,2983.0,2982.6,0.001]
[1767110731138,2.84475262,2983.2,2982.6,2.4002]
[1767110731348,2.57702718,2984.0,2982.7,2.3992]
[1767110731654,0.10022718,2983.8,2982.7,2.3992]
[1767110731815,2.57702718,2983.8,2982.9,2.3992]
[1767110732013,2.4768,2983.6,2982.9,2.3992]
[1767110734251,0.10022718,2984.0,2982.9,2.3992]
[1767110734252,2.73650272,2984.1,2983.0,2.3992]
[1767110734427,0.25970272,2984.1,2983.0,2.3992]
[1767110734745,2.4788,2984.1,2983.0,2.3992]
[1767110735148,2.4768,2983.9,2983.0,2.3992]
[1767110736835,0.10022718,2984.0,2983.0,2.3992]
[1767110737343,2.57702718,2984.0,2983.0,2.3992]
[1767110738319,2.57702718,2984.0,2983.0,2.4002]
[1767110738546,0.25790272,2983.9,2983.0,2.4002]
[1767110739150,2.73470272,2983.9,2983.0,2.4002]
[1767110739334,0.25790272,2983.9,2983.0,2.4002]
[1767110739534,0.10022718,2984.0,2983.0,2.4002]
[1767110739725,2.57702718,2984.0,2983.0,2.4002]
[1767110742526,2.4768,2983.7,2983.0,2.4002]
[1767110743861,0.10022718,2983.8,2983.0,2.4002]
[1767110743862,2.4768,2983.5,2983.0,0.001]
[1767110746757,2.3196,2983.3,2982.6,0.001]
[1767110746940,2.56158272,2983.2,2982.6,0.001]
[1767110748154,0.24198272,2983.2,2982.7,2.49]
[1767110748363,2.3196,2983.5,2982.7,2.49]
[1767110748848,2.41982718,2984.0,2982.9,2.49]
[1767110750446,2.41982718,2984.0,2983.0,2.49]
[1767110751837,0.10022718,2984.4,2983.0,2.49]
[1767110752033,2.3196,2984.8,2983.4,2.49]
[1767110752351,2.3196,2984.8,2983.6,2.49]
[1767110753363,2.3196,2984.8,2983.2,6.63719909]
[1767110753364,2.3196,2984.8,2983.8,2.49]
[1767110753571,0.10022718,2984.7,2983.8,2.49]
[1767110753769,0.002,2984.1,2983.5,2.49]
[1767110753977,0.002,2984.1,2983.5,2.8269]
[1767110754268,0.10022718,2984.4,2983.6,2.49]
[1767110754682,2.41982718,2984.4,2983.6,2.49]
[1767110754854,2.3196,2984.1,2983.4,2.49]
[1767110755365,2.3196,2984.4,2983.4,2.49]
[1767110755541,2.3196,2984.4,2983.5,2.49]
[1767110755542,2.56158272,2984.4,2983.5,2.49]
[1767110757076,0.002,2984.9,2983.5,2.49]
[1767110757371,2.3196,2984.4,2983.5,0.879]
[1767110757540,2.3196,2984.4,2983.5,3.369]
[1767110757740,2.56158272,2984.4,2983.5,3.369]
[1767110758055,2.41982718,2984.3,2983.5,3.369]
[1767110758252,2.41982718,2984.3,2983.0,2.49]
[1767110758253,2.3196,2984.0,2983.0,2.49]
[1767110758451,0.10022718,2984.3,2983.0,2.49]
[1767110758649,2.41982718,2984.3,2983.1,2.49]
[1767110758839,2.64918272,2984.2,2983.3,2.49]
[1767110759360,0.10022718,2984.3,2983.0,2.3308]
[1767110759361,2.444,2984.0,2983.0,2.3308]
[1767110759566,2.54422718,2983.9,2983.1,2.3308]
[1767110759877,2.444,2983.4,2982.5,2.3308]
[1767110760041,2.54422718,2983.3,2982.5,2.3308]
[1767110760991,2.444,2983.0,2982.1,2.3318]
[1767110761192,2.444,2983.0,2982.1,0.001]
[1767110761193,2.444,2982.8,2982.1,0.001]
[1767110761690,0.25442272,2982.9,2982.2,2.3308]
[1767110761861,0.876,2983.0,2982.2,2.3308]
[1767110761862,2.444,2983.2,2982.2,2.3308]
[1767110762061,3.42022718,2983.5,2982.2,2.3308]
[1767110762498,2.54422718,2983.5,2982.3,2.3308]
[1767110762791,2.444,2983.8,2982.5,2.3308]
[1767110762994,2.444,2983.4,2982.4,0.56840006]
[1767110763194,0.10022718,2983.5,2982.2,2.3308]
[1767110763195,2.444,2983.2,2982.2,2.3308]
[1767110763362,2.444,2983.0,2982.2,2.3308]
[1767110763986,0.10022718,2983.1,2982.2,2.3308]
[1767110764270,2.54422718,2983.1,2982.2,2.3308]
[1767110764608,2.54422718,2983.1,2982.1,0.001]
[1767110764609,2.54422718,2982.7,2982.1,0.001]
[1767110764904,2.444,2982.2,2981.8,0.001]
[1767110766801,2.54422718,2982.1,2981.0,0.879]
[1767110767095,2.54422718,2982.1,2981.0,3.2098]
[1767110767270,2.54422718,2981.9,2981.0,3.2098]
[1767110767471,2.54422718,2981.9,2981.0,0.879]
[1767110767688,2.54422718,2981.9,2981.1,2.3308]
[1767110767889,2.54422718,2981.9,2981.1,2.65188]
[1767110768582,0.10022718,2982.1,2981.2,2.3308]
[1767110768796,0.10022718,2982.5,2981.8,0.001]
[1767110768974,0.10022718,2982.5,2981.8,2.3318]
[1767110769180,2.54422718,2982.5,2981.8,0.001]
[1767110769381,2.89627262,2982.5,2981.8,0.001]
[1767110769872,2.54422718,2982.9,2981.8,2.3318]
[1767110770203,2.444,2982.7,2981.8,2.3318]
[1767110770495,0.10022718,2982.8,2981.8,2.3318]
[1767110770496,2.54422718,2982.6,2981.8,2.3318]
[1767110771602,2.444,2983.0,2981.8,2.3318]
[1767110771785,2.444,2983.0,2982.0,2.3308]
[1767110772118,2.444,2983.8,2982.2,2.3308]
[1767110772265,2.444,2983.8,2982.4,2.3308]
[1767110772462,2.444,2983.8,2982.6,2.3308]
[1767110772694,0.002,2984.6,2982.5,3.35289186]
[1767110772695,0.002,2984.1,2982.9,6.63719909]
[1767110772902,0.002,2984.6,2983.6,2.3308]
[1767110773065,0.002,2984.6,2983.8,2.3308]
[1767110773865,2.444,2984.5,2983.7,0.879]
[1767110774871,1.43762968,2984.5,2983.7,0.879]
[1767110775090,0.10222718,2984.6,2983.8,2.3308]
[1767110775600,0.002,2984.6,2983.9,2.3308]
[1767110776970,2.442,2984.6,2983.9,2.3308]
[1767110777281,0.002,2984.6,2983.9,2.3308]
[1767110778196,0.002,2984.6,2984.0,2.4692]
[1767110778406,2.442,2984.9,2984.0,2.4692]
[1767110778609,2.442,2984.9,2984.0,2.96368676]
[1767110778769,0.002,2984.9,2984.0,0.49448676]
[1767110778971,0.002,2984.9,2984.1,2.4692]
[1767110780602,0.002,2985.3,2984.3,6.63719909]
[1767110780799,2.44,2985.7,2984.4,2.4692]
[1767110781097,2.44,2985.7,2984.6,2.4692]
[1767110781674,0.10222718,2985.8,2984.6,2.4692]
[1767110781982,0.002,2985.8,2984.8,2.4692]
[1767110782892,0.002,2985.8,2984.9,2.4692]
[1767110783096,2.442,2986.1,2985.1,2.4692]
[1767110783603,2.54022718,2986.0,2984.8,2.4692]
[1767110783902,2.44,2985.7,2984.9,2.4692]
[1767110784105,2.44,2985.5,2984.6,2.4692]
[1767110784401,0.25402272,2985.7,2984.6,2.4692]
[1767110784591,2.54022718,2986.0,2984.9,2.4692]
[1767110784966,0.10022718,2985.8,2984.9,2.4692]
[1767110785974,2.54022718,2986.0,2984.9,2.4692]
[1767110786307,0.10022718,2985.8,2984.9,2.4692]
[1767110787499,2.54022718,2985.6,2984.0,10.3810238]
[1767110787704,0.25402272,2985.5,2984.3,2.4692]
[1767110787894,0.10022718,2985.4,2984.3,3.35085986]
[1767110788089,0.10022718,2985.4,2984.4,2.4692]
[1767110788474,2.44,2985.3,2984.4,2.4692]
[1767110788677,2.44,2985.6,2984.4,2.4692]
[1767110788979,2.44,2985.6,2984.2,0.879]
[1767110788980,0.10022718,2985.8,2984.7,2.4692]
[1767110789194,0.10022718,2985.8,2984.5,0.03350644]
[1767110789195,0.10022718,2985.8,2984.8,2.4692]
[1767110789617,2.44,2985.7,2984.8,2.4692]
[1767110791102,0.10222718,2985.8,2985.0,2.4692]
[1767110791290,0.34182272,2985.7,2985.0,2.4692]
[1767110791480,0.002,2986.1,2984.9,2.4692]
[1767110792002,2.54022718,2986.0,2984.9,2.4692]
[1767110792177,2.54022718,2985.8,2984.9,2.4692]
[1767110792701,2.54022718,2985.6,2984.9,2.4692]
[1767110795898,2.54022718,2985.6,2984.7,0.879]
[1767110796100,0.25402272,2985.5,2984.8,2.4692]
[1767110798019,2.44,2985.4,2984.7,0.879]
[1767110798237,2.44,2985.1,2984.0,2.4692]
[1767110798395,2.44,2984.9,2984.0,2.4692]
[1767110798603,2.44,2984.9,2984.1,2.71612]
[1767110799095,0.10022718,2984.7,2984.1,2.71612]
[1767110799422,2.44,2984.9,2984.1,2.71612]
[1767110799718,2.44,2984.9,2984.1,2.4692]
[1767110800412,2.44,2984.9,2984.0,0.001]
[1767110800783,2.44,2984.7,2984.0,0.001]
[1767110801182,2.44,2984.7,2984.0,2.4702]
[1767110805713,2.44,2985.1,2984.2,2.4692]
[1767110805915,2.44,2985.1,2984.4,2.4692]
[1767110806735,0.002,2985.6,2984.4,2.4692]
[1767110806935,0.002,2985.6,2984.3,0.28377978]
[1767110806936,0.002,2985.6,2984.6,2.2891]
[1767110807134,0.002,2985.6,2984.8,2.2891]
[1767110807442,0.002,2985.6,2984.9,2.2891]
[1767110807643,0.002,2985.6,2985.1,2.2891]
[1767110807945,2.40452718,2985.6,2984.8,2.2891]
[1767110808936,0.10222718,2985.6,2984.8,2.2891]
[1767110809245,0.002,2985.6,2984.8,2.2891]
[1767110809758,0.002,2985.6,2984.9,2.2891]
[1767110809965,0.002,2985.6,2984.9,2.60591]
[1767110811256,0.10022718,2986.0,2985.0,2.2891]
[1767110811781,2.40252718,2986.0,2985.0,2.2891]
[1767110814973,2.3023,2985.7,2985.0,2.2891]
[1767110815158,2.40252718,2985.5,2984.7,3.1681]
[1767110815358,2.40252718,2985.5,2984.7,3.48491]
[1767110815938,2.40252718,2985.3,2984.7,0.879]
[1767110816355,2.3023,2985.3,2984.7,0.879]
[1767110816731,0.10022718,2986.0,2984.7,0.879]
[1767110816732,2.40452718,2986.1,2984.8,2.2891]
[1767110816958,0.10022718,2985.7,2985.0,2.2891]
[1767110817159,2.40252718,2985.7,2985.0,2.2891]
[1767110817362,2.65280262,2985.7,2984.9,0.001]
[1767110817565,2.3023,2985.4,2984.9,0.001]
[1767110817767,2.3023,2985.4,2984.4,2.2901]
[1767110817969,2.3023,2984.9,2984.4,0.001]
[1767110818341,0.10022718,2985.0,2984.4,2.2901]
[1767110818743,0.10022718,2984.4,2984.0,0.001]
[1767110818938,0.10022718,2984.4,2983.7,0.001]
[1767110818939,2.3767,2984.1,2983.7,0.001]
[1767110819583,0.10022718,2984.6,2983.7,2.2715]
[1767110819783,2.47692718,2984.6,2983.7,2.2715]
[1767110819948,2.47692718,2984.6,2983.7,2.58655]
[1767110821976,2.3767,2984.3,2983.7,0.001]
[1767110822879,2.3767,2984.1,2983.2,0.001]
[1767110823040,0.10022718,2984.0,2983.2,2.2715]
[1767110823242,2.47692718,2984.0,2983.2,2.2715]
[1767110823449,2.3767,2983.5,2982.9,0.001]
[1767110823849,2.63441544,2984.0,2983.0,2.30399613]
[1767110824072,2.3767,2984.0,2983.1,2.2705]
[1767110824275,2.3767,2984.0,2983.3,2.2705]
[1767110824445,2.3767,2984.3,2983.5,2.2705]
[1767110824874,0.10022718,2984.7,2983.6,2.30398939]
[1767110825074,2.3767,2984.6,2983.6,2.30398939]
[1767110825278,2.3767,2984.6,2983.8,2.2705]
[1767110825476,2.3767,2984.6,2983.7,0.23039894]
[1767110825784,0.10022718,2984.7,2983.3,0.879]
[1767110825785,2.3767,2984.2,2983.6,0.001]
[1767110826290,2.3767,2983.8,2983.2,2.2705]
[1767110826584,0.10022718,2983.9,2983.2,2.2705]
[1767110827755,2.3767,2983.8,2982.9,0.001]
[1767110827958,0.35794262,2983.9,2982.9,0.001]
[1767110827959,2.3767,2983.6,2982.9,0.001]
[1767110828160,2.73464262,2983.9,2982.9,2.2715]
[1767110828385,0.35794262,2983.9,2983.1,2.2705]
[1767110828692,0.10022718,2983.9,2983.3,2.2705]
[1767110828890,2.47692718,2983.9,2982.9,0.001]
[1767110829065,2.47692718,2983.5,2982.9,0.001]
[1767110829271,2.47692718,2983.5,2982.6,2.2705]
[1767110829580,2.47692718,2983.3,2982.6,2.2705]
[1767110830289,2.73464262,2983.3,2982.5,0.88]
[1767110830670,2.47692718,2983.1,2982.5,0.001]
[1767110830870,2.3767,2983.1,2982.5,0.001]
[1767110832985,0.10022718,2983.0,2982.5,0.001]
[1767110833199,2.47692718,2983.0,2982.5,0.001]
[1767110834004,2.62439272,2983.0,2982.4,0.001]
[1767110835013,2.3767,2982.8,2982.2,2.2705]
[1767110835311,2.3767,2982.8,2982.1,0.001]
[1767110835682,2.3767,2982.8,2982.1,2.2715]
[1767110836327,0.10022718,2982.9,2982.2,2.3523]
[1767110837224,0.24769272,2983.0,2982.2,2.3523]
[1767110837430,2.55839272,2983.0,2982.2,2.3523]
[1767110839440,2.3107,2983.4,2982.3,2.3523]
[1767110839742,2.3107,2983.4,2982.5,2.3523]
[1767110840106,2.3107,2983.2,2982.5,2.3523]
[1767110842144,2.3107,2983.6,2982.7,2.3523]
[1767110842383,0.10022718,2983.9,2982.9,2.3523]
[1767110842641,0.10022718,2983.9,2982.8,0.23523]
[1767110842642,2.3107,2984.8,2983.8,2.3523]
[1767110843033,2.41092718,2984.7,2983.8,2.3523]
[1767110843256,2.3107,2984.3,2983.6,0.879]
[1767110843574,0.10022718,2985.1,2983.7,2.3523]
[1767110843575,2.3107,2985.0,2983.7,2.3523]
[1767110843794,0.10022718,2985.1,2983.9,2.3523]
[1767110843795,2.3107,2984.8,2983.9,2.3523]
[1767110844091,0.97722718,2985.1,2983.1,2.3523]
[1767110844092,2.3107,2984.6,2983.1,2.3523]
[1767110844244,2.3107,2984.4,2983.4,3.2313]
[1767110844442,2.6520199,2984.3,2983.4,3.2313]
[1767110844973,2.6520199,2984.3,2983.5,2.3523]
[1767110845269,2.3107,2984.1,2983.0,2.3523]
[1767110845677,2.3107,2984.1,2983.1,2.3523]
[1767110845872,2.57590199,2984.1,2983.2,2.3523]
[1767110846572,0.10022718,2984.5,2983.4,2.3523]
[1767110846573,2.3107,2984.4,2983.4,2.3523]
[1767110846757,0.10022718,2984.5,2983.5,2.3523]
[1767110846953,2.41092718,2984.7,2983.6,2.3523]
[1767110847157,2.41092718,2984.7,2983.7,2.3523]
[1767110847158,2.3107,2984.7,2983.7,2.3523]
[1767110848370,0.10022718,2984.4,2983.5,2.3523]
[1767110848538,2.3107,2984.3,2983.6,0.32313]
[1767110848977,2.3107,2984.3,2983.5,2.3523]
[1767110849348,2.3107,2984.1,2983.2,0.879]
[1767110849575,2.3107,2984.1,2983.3,2.3523]
[1767110851059,2.3107,2984.1,2983.2,0.879]
[1767110851467,2.3107,2984.1,2983.3,2.3523]
[1767110851672,0.23107,2984.0,2983.3,2.3523]
[1767110852580,0.10022718,2984.4,2983.3,2.3523]
[1767110852961,2.41092718,2984.4,2983.3,2.3523]
[1767110853259,2.41092718,2984.4,2983.5,2.3523]
[1767110853455,0.002,2984.8,2983.5,2.3523]
[1767110853658,2.3107,2984.7,2983.5,2.3523]
[1767110853981,2.3107,2984.7,2983.4,6.7037608]
[1767110853982,0.002,2984.8,2983.7,2.3523]
[1767110854278,0.002,2984.8,2983.9,2.3523]
[1767110855361,0.002,2984.8,2983.9,3.35131144]
[1767110855688,2.3127,2984.8,2984.0,2.3523]
[1767110856367,0.002,2984.8,2984.0,2.3523]
[1767110856567,2.3127,2984.8,2984.1,2.92265921]
[1767110856865,2.3127,2984.8,2984.1,2.3523]
[1767110857655,0.002,2984.8,2984.1,2.3523]
[1767110858078,2.3107,2984.7,2984.1,2.3523]
[1767110859182,2.3127,2984.8,2984.1,2.3523]
[1767110860874,2.3127,2984.8,2983.8,2.3523]
[1767110861188,2.3107,2984.6,2983.8,2.3523]
[1767110863590,0.23127,2984.7,2983.8,2.3523]
[1767110864093,2.54197,2984.7,2983.8,2.3523]
[1767110864260,2.3107,2984.7,2983.8,2.3523]
[1767110864787,2.3107,2984.7,2983.8,2.3533]
[1767110869276,0.002,2984.8,2983.9,2.4211]
[1767110869720,2.4394,2985.4,2984.3,2.4211]
[1767110869994,2.4394,2985.4,2984.5,2.4211]
[1767110870363,0.002,2985.5,2984.6,2.4211]
[1767110872792,0.002,2985.4,2984.7,2.4211]
[1767110878016,0.002,2985.8,2984.8,2.4211]
[1767110878178,2.4414,2985.8,2985.0,2.4211]
[1767110880012,2.4414,2985.8,2985.1,2.3529]
[1767110880817,0.002,2985.8,2985.1,2.3529]
[1767110881012,2.3024,2985.8,2985.1,2.3529]
[1767110881215,2.3024,2985.8,2984.1,2.3529]
[1767110881426,2.3004,2985.6,2984.3,2.3529]
[1767110881721,2.3004,2985.6,2984.3,2.38640869]
[1767110882085,0.002,2985.8,2984.6,6.63672091]
[1767110882287,0.002,2985.8,2984.8,2.3529]
[1767110882589,0.002,2986.0,2985.0,2.3529]
[1767110883420,0.878,2986.5,2985.5,2.3529]
[1767110883421,0.002,2986.5,2985.5,2.3529]
[1767110883789,0.002,2986.7,2985.4,6.63672091]
[1767110883790,0.002,2986.7,2985.7,2.3529]
[1767110883990,2.3024,2986.7,2985.7,2.3529]
[1767110885408,0.002,2986.7,2985.7,2.3529]
[1767110885611,0.002,2986.7,2985.8,2.3529]
[1767110885813,2.40062718,2986.6,2985.0,0.37808405]
[1767110886016,2.40062718,2986.6,2984.4,0.16]
[1767110886017,2.3004,2986.3,2985.3,2.3529]
[1767110886414,0.10022718,2986.6,2983.8,0.66297709]
[1767110886415,2.3004,2985.8,2983.8,0.66297709]
[1767110886616,0.10022718,2985.9,2984.1,2.3529]
[1767110886617,2.3004,2985.6,2984.1,2.3529]
[1767110886922,2.3004,2985.4,2984.3,2.3529]
[1767110887922,2.3004,2985.4,2984.6,2.3529]
[1767110888126,2.3004,2985.4,2984.5,0.001]
[1767110889411,2.3004,2985.4,2984.0,3.2319]
[1767110889835,2.3004,2985.4,2984.1,2.3529]
[1767110890031,0.4278899,2985.5,2984.2,0.32319]
[1767110890032,2.3004,2985.2,2984.2,0.32319]
[1767110890235,0.27282899,2985.3,2983.8,0.001]
[1767110890236,2.3004,2984.7,2983.8,0.001]
[1767110890416,2.3004,2984.5,2983.4,2.3529]
[1767110894152,7.06461081,2985.5,2983.6,2.3529]
[1767110894153,2.3004,2985.2,2983.6,2.3529]
[1767110894455,2.3004,2984.9,2983.8,2.3529]
[1767110894682,2.61804,2984.9,2983.9,2.67609]
[1767110895942,2.61804,2984.9,2983.5,2.3529]
[1767110896253,2.71826718,2984.9,2983.5,2.2952]
[1767110898368,2.4548,2985.3,2984.0,2.2952]
[1767110898571,2.4548,2985.3,2983.9,6.63672091]
[1767110898572,2.4548,2985.3,2984.2,2.2952]
[1767110898855,2.55502718,2985.3,2984.1,0.879]
[1767110899026,2.55502718,2985.3,2984.2,2.2952]
[1767110900853,2.4548,2985.3,2984.2,2.2952]
[1767110901033,2.4548,2985.3,2984.3,0.31742]
[1767110901237,2.4548,2985.3,2984.0,3.1742]
[1767110901435,2.4548,2985.3,2984.1,2.2952]
[1767110903139,2.4548,2985.3,2984.1,2.2962]
[1767110905077,2.4548,2984.9,2984.1,0.001]
[1767110906756,2.4548,2984.9,2984.0,0.879]
[1767110906932,2.4548,2984.7,2984.0,0.879]
[1767110908533,2.4548,2984.7,2983.5,2.2952]
[1767110909560,0.10022718,2985.0,2983.3,0.001]
[1767110909561,0.10022718,2984.4,2983.3,0.001]
[1767110909771,2.4548,2984.3,2983.3,0.001]
[1767110910468,2.4548,2984.3,2984.0,0.001]
[1767110910676,2.4548,2984.1,2984.0,0.001]
[1767110911038,2.4548,2984.1,2983.3,2.02e-06]
[1767110911441,2.4548,2984.1,2983.3,2.29520202]
[1767110914474,2.4548,2984.1,2983.3,2.02e-06]
[1767110915141,2.4548,2984.7,2983.5,2.2952]
[1767110915364,2.4548,2984.7,2983.7,2.2952]
[1767110915752,2.4548,2984.7,2983.6,0.31742]
[1767110915962,2.4548,2984.7,2983.6,2.61262]
[1767110920243,2.4548,2985.1,2983.7,2.2952]
[1767110920443,2.4548,2985.1,2983.6,3.66904101]
[1767110920444,2.4548,2985.1,2983.9,2.2952]
[1767110920762,2.78808,2985.1,2984.1,2.2952]
[1767110920968,2.88830718,2985.1,2983.8,2.2952]
[1767110921148,2.4548,2984.8,2983.8,2.2952]
[1767110923078,2.4548,2984.6,2983.3,2.02e-06]
[1767110923276,2.4548,2984.6,2983.4,2.2952]
[1767110923478,2.4548,2984.4,2983.4,2.2952]
[1767110923686,2.4548,2984.4,2983.3,0.87900202]
[1767110924403,2.4548,2984.4,2983.0,0.001]
[1767110924404,2.4548,2983.9,2983.0,0.001]
[1767110924970,0.10022718,2983.8,2983.0,0.001]
[1767110925257,0.10022718,2983.8,2982.5,0.88]
[1767110925258,2.4548,2983.5,2982.5,0.88]
[1767110925461,2.4548,2983.3,2982.5,0.88]
[1767110925991,2.4548,2983.3,2982.5,0.001]
[1767110926153,2.4548,2983.3,2982.6,2.366]
[1767110927357,2.4548,2983.3,2982.6,0.001]
[1767110927556,2.4548,2983.3,2982.2,0.001]
[1767110927768,2.4548,2983.3,2982.2,2.366]
[1767110927964,2.72583027,2983.3,2982.4,2.365]
[1767110928174,2.4548,2983.3,2982.4,2.365]
[1767110928487,2.2872,2983.5,2982.4,2.365]
[1767110930084,2.2872,2983.5,2982.6,2.365]
[1767110930595,2.2872,2983.5,2982.2,0.001]
[1767110930596,2.2872,2983.2,2982.2,0.001]
[1767110931291,2.2872,2983.2,2982.2,2.3846586]
[1767110931462,2.2872,2983.0,2982.2,2.3846586]
[1767110932173,2.2872,2983.0,2982.2,2.366]
[1767110932376,2.2872,2983.0,2982.2,0.001]
[1767110932792,2.2872,2983.0,2982.2,2.366]
[1767110933198,2.2872,2983.0,2982.4,2.366]
[1767110934298,2.2872,2983.4,2982.4,2.60456991]
[1767110934483,2.2872,2983.7,2982.6,2.365]
[1767110934990,2.2872,2983.7,2982.5,0.879]
[1767110935290,2.2872,2983.7,2982.6,2.365]
[1767110935494,2.2872,2983.5,2982.6,2.365]
[1767110936498,2.2872,2983.5,2982.4,0.001]
[1767110936707,2.2872,2983.5,2982.4,0.88]
[1767110937169,2.2872,2983.5,2982.4,2.366]
[1767110937520,2.2872,2983.5,2982.4,3.245]
[1767110937697,2.2872,2983.3,2982.4,3.245]
[1767110938494,2.2872,2983.3,2982.5,2.365]
[1767110940383,2.2872,2983.3,2982.4,0.001]
[1767110940703,2.2872,2983.3,2982.4,0.88]
[1767110940904,2.2872,2983.3,2982.4,3.1555]
[1767110941072,2.2872,2983.3,2982.5,2.2755]
[1767110941379,2.2872,2983.3,2982.4,0.88]
[1767110941701,2.2872,2983.3,2982.4,3.1555]
[1767110942072,2.2872,2983.3,2982.5,2.2755]
[1767110942575,2.3481,2983.5,2982.5,2.2755]
[1767110942774,2.58091,2983.4,2982.5,2.2755]
[1767110948403,2.3461,2983.4,2982.6,2.2755]
[1767110948574,0.002,2983.5,2982.6,2.2755]
[1767110948777,2.3481,2983.5,2982.6,2.2755]
[1767110949475,2.3481,2983.5,2982.7,0.879]
[1767110949792,2.58291,2983.5,2982.6,2.2755]
[1767110950878,2.58291,2983.5,2982.5,4.62282471]
[1767110951680,2.58291,2983.5,2982.6,2.2755]
[1767110951891,2.3481,2983.5,2982.6,2.2755]
[1767110953481,2.3481,2983.5,2982.7,2.2755]
[1767110954010,0.002,2984.1,2982.7,2.71849258]
[1767110954212,2.3461,2984.0,2982.9,2.2755]
[1767110954512,2.3461,2983.8,2983.0,0.879]
[1767110954708,2.3461,2983.6,2982.8,4.62282471]
[1767110955498,2.3461,2983.6,2982.8,3.74382471]
[1767110955893,2.3461,2983.4,2982.8,3.74382471]
[1767110956096,2.3461,2983.4,2982.7,3.1545]
[1767110956693,2.3461,2983.4,2982.6,3.74382471]
[1767110956893,2.401,2983.2,2982.6,3.74382471]
[1767110957499,2.403,2983.5,2982.7,2.3841]
[1767110958013,0.002,2983.5,2982.7,2.3841]
[1767110958214,2.403,2984.1,2982.9,2.3841]
[1767110958515,2.403,2984.1,2983.1,2.3841]
[1767110959505,0.002,2984.1,2983.3,2.3841]
[1767110960105,2.401,2984.4,2983.3,2.3841]
[1767110960305,2.403,2984.7,2983.3,2.3841]
[1767110960520,2.403,2984.7,2983.5,2.3841]
[1767110960727,2.403,2984.7,2983.7,2.3841]
[1767110963194,0.002,2984.7,2983.7,2.3841]
[1767110963501,0.002,2984.7,2983.8,2.3841]
[1767110963706,0.002,2984.7,2983.9,2.3841]
[1767110963911,0.002,2984.4,2983.9,2.3841]
[1767110964226,0.002,2984.4,2984.0,0.61279247]
[1767110964422,2.403,2984.4,2983.9,0.879]
[1767110964742,2.403,2984.4,2983.7,2.3841]
[1767110964916,2.403,2984.4,2983.8,0.879]
[1767110965526,2.403,2984.4,2983.4,2.3841]
[1767110965702,2.403,2984.4,2983.4,3.2631]
[1767110965896,2.403,2984.4,2983.5,0.32631]
[1767110966200,2.403,2984.4,2983.5,2.71041]
[1767110967332,0.002,2984.4,2983.5,2.71041]
[1767110967832,0.002,2984.4,2983.6,2.3841]
[1767110969422,0.002,2984.4,2983.8,2.3841]
[1767110969612,0.002,2984.4,2984.0,2.3841]
[1767110969929,2.403,2984.4,2983.9,0.24026936]
[1767110970223,2.403,2984.4,2983.7,2.3841]
[1767110970997,0.002,2984.4,2983.8,2.3841]
[1767110971201,2.403,2984.7,2984.0,2.3841]
[1767110971620,2.403,2984.7,2983.9,0.879]
[1767110971796,2.403,2984.7,2984.0,2.3841]
[1767110972002,2.403,2984.7,2984.0,2.71041]
[1767110972212,2.403,2984.7,2983.9,0.879]
[1767110972425,2.403,2984.7,2983.9,3.2631]
[1767110973640,0.002,2984.7,2984.0,2.3841]
[1767110974139,2.403,2984.7,2984.0,2.3841]
[1767110975132,2.403,2984.7,2983.7,0.879]
[1767110975314,2.403,2984.7,2983.7,3.2631]
[1767110975315,2.401,2984.5,2983.7,3.2631]
[1767110976229,2.401,2985.2,2984.0,2.3841]
[1767110976602,2.401,2985.2,2984.2,2.3841]
[1767110976899,5.31493711,2985.1,2984.2,2.3841]
[1767110977232,5.31493711,2985.1,2983.7,4.23051757]
[1767110977233,2.401,2984.8,2983.8,0.879]
[1767110977434,2.401,2984.7,2983.8,1.73680371]
[1767110977934,2.401,2984.7,2983.8,4.12090371]
[1767110978930,2.403,2984.7,2983.8,4.12090371]
[1767110980436,2.401,2984.6,2983.8,3.2631]